bitfinex-derivatives/quotes_SOLF0:USTF0_20250109
["timestamp","ask_amount","ask_price","bid_price","bid_amount"]
[1736401873841,1.5263,194.73,194.66,6.4701785]
[1736401874144,2.9,194.73,194.68,6.4701785]
[1736401874345,5.4688,194.73,194.69,2.5692]
[1736401875442,6.4701785,194.72,194.69,2.5692]
[1736401876148,6.4701785,194.72,194.66,6.4701785]
[1736401876342,6.4701785,194.72,194.68,2.5694]
[1736401876549,9.0390785,194.72,194.66,6.4701785]
[1736401876944,2.5693,194.69,194.64,7.9854785]
[1736401878145,2.5693,194.69,194.65,2.5698]
[1736401881344,2.5696,194.67,194.61,6.4701785]
[1736401881848,2.5696,194.67,194.57,1.4638]
[1736401881849,6.4701785,194.64,194.57,7.9339785]
[1736401882049,9.0402785,194.64,194.57,7.9339785]
[1736401883047,6.4701785,194.62,194.57,7.9339785]
[1736401883253,6.4701785,194.62,194.55,6.4701785]
[1736401883653,6.4701785,194.62,194.57,6.4701785]
[1736401884150,2.9,194.63,194.57,6.4701785]
[1736401885049,2.9,194.63,194.61,2.5703]
[1736401885356,2.9,194.63,194.59,6.4701785]
[1736401885558,9.3701785,194.67,194.61,6.4701785]
[1736401885952,6.4701785,194.67,194.61,6.4701785]
[1736401886152,6.4701785,194.69,194.63,6.4701785]
[1736401886453,8.20689617,194.71,194.65,6.4701785]
[1736401886454,6.4701785,194.71,194.65,6.4701785]
[1736401886856,5.4689,194.72,194.68,2.5693]
[1736401887056,2.5689,194.72,194.68,2.5693]
[1736401887854,2.9,194.73,194.7,2.5691]
[1736401888055,6.4701785,194.75,194.69,6.4701785]
[1736401888250,9.3701785,194.75,194.69,6.4701785]
[1736401888460,6.4701785,194.75,194.71,2.5689]
[1736401889658,6.4701785,194.77,194.71,6.4701785]
[1736401891253,11.94719717,194.79,194.69,2.9]
[1736401891560,14.67707467,194.82,194.75,6.4701785]
[1736401891759,14.67707467,194.82,194.77,6.4701785]
[1736401891963,6.4701785,194.82,194.79,2.5679]
[1736401892557,2.9,194.83,194.81,2.5677]
[1736401892762,2.9,194.83,194.77,6.4701785]
[1736401892956,6.4701785,194.84,194.77,6.4701785]
[1736401894062,6.4701785,194.84,194.8,2.5678]
[1736401895457,6.4701785,194.84,194.77,6.4701785]
[1736401895653,6.4701785,194.84,194.78,2.568]
[1736401895859,6.4701785,194.84,194.77,6.4701785]
[1736401896661,0.92999363,194.83,194.77,6.4701785]
[1736401897060,6.4701785,194.84,194.77,6.4701785]
[1736401897261,0.93057297,194.83,194.77,6.4701785]
[1736401897460,6.4701785,194.84,194.77,6.4701785]
[1736401898058,6.4701785,194.84,194.8,2.5678]
[1736401898360,6.4701785,194.84,194.77,6.4701785]
[1736401900059,6.4701785,194.84,194.79,2.568]
[1736401900363,6.4701785,194.84,194.77,6.4701785]
[1736401901161,6.4701785,194.84,194.8,2.5677]
[1736401905969,6.4701785,194.82,194.7,194.1129]
[1736401906169,6.4701785,194.79,194.72,6.4701785]
[1736401908072,2.5681,194.78,194.74,2.5686]
[1736401908373,6.4701785,194.79,194.74,2.5686]
[1736401908971,2.9,194.81,194.78,2.5681]
[1736401909168,8.1651943,194.9,194.76,6.4701785]
[1736401909169,9.3701785,194.84,194.76,6.4701785]
[1736401909373,0.93126702,194.83,194.76,6.4701785]
[1736401909671,2.9,194.84,194.78,6.4701785]
[1736401910172,2.9,194.84,194.82,2.5675]
[1736401910563,10.7316943,194.91,194.86,2.567]
[1736401910774,6.4701785,194.89,194.86,2.567]
[1736401910962,0.93156031,194.88,194.86,2.567]
[1736401911168,7.40166841,194.87,194.84,2.5672]
[1736401911367,6.4701785,194.85,194.78,6.4701785]
[1736401911677,0.93128052,194.84,194.78,6.4701785]
[1736401912063,9.0373785,194.85,194.8,2.5677]
[1736401912263,0.93125349,194.84,194.8,2.5677]
[1736401912769,0.93125349,194.84,194.81,2.5677]
[1736401913172,6.4701785,194.85,194.81,2.5677]
[1736401913476,0.93094293,194.84,194.81,2.5677]
[1736401914175,3.49834293,194.84,194.77,2.5681]
[1736401914478,7.40100161,194.83,194.75,6.4701785]
[1736401914674,6.4701785,194.83,194.75,6.4701785]
[1736401915069,6.4701785,194.83,194.77,6.4701785]
[1736401915470,2.9,194.84,194.77,6.4701785]
[1736401915976,6.4701785,194.87,194.81,6.4701785]
[1736401917377,6.4701785,194.87,194.84,2.5672]
[1736401918579,6.4701785,194.87,194.83,2.5674]
[1736401919679,6.4701785,194.87,194.84,2.5673]
[1736401922080,6.4701785,194.87,194.83,2.5674]
[1736401923382,9.0374785,194.85,194.81,2.5677]
[1736401923579,6.4701785,194.83,194.71,1.4795]
[1736401923776,6.4701785,194.81,194.75,6.4701785]
[1736401924281,6.4701785,194.81,194.77,2.5682]
[1736401925183,6.4701785,194.81,194.75,6.4701785]
[1736401925384,6.4701785,194.81,194.78,2.5681]
[1736401925775,2.5675,194.83,194.79,2.568]
[1736401925981,0.93031232,194.82,194.77,6.4701785]
[1736401926179,0.93031232,194.82,194.79,6.4701785]
[1736401926486,9.3701785,194.87,194.81,6.4701785]
[1736401926784,6.4701785,194.85,194.75,2.9]
[1736401926985,6.4701785,194.85,194.78,6.4701785]
[1736401927185,6.4701785,194.85,194.81,2.5676]
[1736401927385,2.9,194.87,194.8,6.4701785]
[1736401927579,0.9307154,194.86,194.82,6.4701785]
[1736401927776,0.9307154,194.86,194.84,2.5672]
[1736401929783,2.9,194.89,194.86,2.5671]
[1736401929988,0.93092817,194.88,194.84,6.4701785]
[1736401930585,0.93092817,194.88,194.85,2.5672]
[1736401930787,0.93092817,194.88,194.84,6.4701785]
[1736401930985,6.4701785,194.9,194.84,6.4701785]
[1736401931185,0.93101602,194.89,194.84,6.4701785]
[1736401931985,2.9,194.91,194.84,6.4701785]
[1736401931986,9.3701785,194.91,194.84,6.4701785]
[1736401932288,0.93082465,194.9,194.88,2.5667]
[1736401933789,6.4701785,194.91,194.88,2.5667]
[1736401933991,6.4701785,194.91,194.84,6.4701785]
[1736401934291,9.3701785,194.93,194.86,6.4701785]
[1736401934588,9.3701785,194.93,194.88,6.4701785]
[1736401934788,0.92977232,194.92,194.91,2.5663]
[1736401934989,0.92980105,194.92,194.91,2.5663]
[1736401936282,0.92980105,194.92,194.81,3.0247]
[1736401936590,6.4701785,194.91,194.83,6.4701785]
[1736401937086,6.4701785,194.91,194.88,2.5668]
[1736401937289,9.3701785,194.93,194.85,6.4701785]
[1736401937486,0.92978341,194.92,194.85,6.4701785]
[1736401937685,0.92978341,194.92,194.87,2.5669]
[1736401937990,0.92978341,194.92,194.85,6.4701785]
[1736401938290,6.4701785,194.91,194.85,6.4701785]
[1736401939189,9.0365785,194.91,194.87,2.5668]
[1736401940192,6.4701785,194.91,194.88,2.5668]
[1736401944491,6.4701785,194.91,194.85,6.4701785]
[1736401944696,6.4701785,194.91,194.89,2.5666]
[1736401948494,2.9,194.94,194.91,2.5664]
[1736401948692,9.3701785,194.94,194.91,2.5664]
[1736401948893,2.5661,194.93,194.87,6.4701785]
[1736401949096,6.4701785,194.92,194.85,6.4701785]
[1736401949697,9.0365785,194.92,194.87,2.5668]
[1736401950196,6.4701785,194.9,194.87,2.5668]
[1736401950897,6.4701785,194.9,194.88,2.5668]
[1736401951600,2.5664,194.92,194.88,2.5668]
[1736401951800,9.0365785,194.92,194.88,2.5668]
[1736401952703,2.5664,194.92,194.88,2.5668]
[1736401952999,9.0365785,194.92,194.88,2.5668]
[1736401953202,63.88948284,194.96,194.87,6.4701785]
[1736401953398,6.4701785,194.94,194.87,6.4701785]
[1736401953589,6.4701785,194.96,194.89,6.4701785]
[1736401954696,6.4701785,194.96,194.93,2.566]
[1736401956102,6.4701785,194.94,194.88,1.484]
[1736401956297,6.4701785,194.92,194.88,1.484]
[1736401957101,9.0364785,194.92,194.85,6.4701785]
[1736401958207,9.0364785,194.92,194.88,2.5667]
[1736401961105,9.0364785,194.92,194.85,6.4701785]
[1736401961106,2.5664,194.91,194.87,2.5669]
[1736401961312,6.4701785,194.9,194.87,2.5669]
[1736401962813,6.4701785,194.9,194.85,6.4701785]
[1736401963013,6.4701785,194.9,194.87,2.5668]
[1736401963410,6.4701785,194.9,194.88,2.5668]
[1736401964308,6.4701785,194.9,194.85,6.4701785]
[1736401964309,6.4701785,194.9,194.89,2.5667]
[1736401966618,6.4701785,194.92,194.89,2.5667]
[1736401966813,6.4701785,194.92,194.9,2.5665]
[1736401967813,8.18592434,194.98,194.87,6.4701785]
[1736401968013,9.0361785,194.95,194.92,2.5663]
[1736401969814,9.0361785,194.95,194.93,2.5661]
[1736401969815,6.4701785,194.95,194.93,2.5661]
[1736401970012,6.4701785,194.95,194.89,6.4701785]
[1736401970209,6.4701785,194.97,194.91,6.4701785]
[1736401971519,8.16858191,195.0,194.91,6.4701785]
[1736401971718,7.39802332,194.99,194.97,2.5656]
[1736401972017,6.4701785,195.0,194.93,6.4701785]
[1736401972218,6.4701785,195.0,194.99,2.5653]
[1736401972618,6.4701785,195.01,194.99,2.5653]
[1736401974318,6.4701785,195.01,194.98,2.5654]
[1736401974517,6.4701785,194.99,194.93,1.5394]
[1736401975221,6.4701785,194.99,194.95,2.5658]
[1736401976323,6.4701785,194.99,194.93,1.5394]
[1736401976519,6.4701785,194.99,194.96,2.5657]
[1736401978524,6.4701785,194.99,194.98,2.5655]
[1736401978720,6.4701785,195.01,194.98,2.5655]
[1736401980321,6.4701785,194.99,194.98,2.5655]
[1736401980526,6.4701785,194.99,194.95,2.5658]
[1736401980727,2.9,195.04,194.95,2.5658]
[1736401980728,6.4701785,194.97,194.95,2.5658]
[1736401982625,6.4701785,194.97,194.96,2.5657]
[1736401984125,6.4701785,194.99,194.92,6.4701785]
[1736401984328,6.4701785,194.99,194.98,2.5655]
[1736401986126,6.4701785,195.01,194.98,2.5655]
[1736401986529,8.18004653,195.05,194.96,6.4701785]
[1736401986832,8.18004653,195.05,194.98,6.4701785]
[1736401986833,6.4701785,195.03,194.98,6.4701785]
[1736401987428,6.4701785,195.03,195.02,2.5649]
[1736401987628,7.39886221,195.03,194.96,9.3501785]
[1736401987825,6.4701785,195.01,194.94,6.4701785]
[1736401988029,6.4701785,194.99,194.92,3.0518]
[1736401988231,6.4701785,194.99,194.92,9.5219785]
[1736401988527,6.4701785,194.99,194.96,2.5656]
[1736401988928,6.4701785,194.99,194.97,2.5656]
[1736401993225,6.4701785,194.99,194.98,2.5655]
[1736401995933,6.4701785,195.01,194.99,2.5653]
[1736401996342,6.4701785,195.03,194.96,6.4701785]
[1736401996534,6.4701785,195.03,195.02,2.5649]
[1736401998444,6.4701785,195.03,195.01,2.565]
[1736401998835,2.5646,195.05,195.01,2.565]
[1736401999138,6.4701785,195.02,195.01,2.565]
[1736402002443,6.4701785,195.04,195.01,2.565]
[1736402003944,6.4701785,195.04,195.02,2.5649]
[1736402004446,6.4701785,195.04,194.98,6.4701785]
[1736402004741,6.4701785,195.04,195.03,2.5648]
[1736402004945,6.4701785,195.06,195.03,2.5648]
[1736402005546,6.4701785,195.06,195.04,2.5647]
[1736402006138,1.5134,195.12,195.05,2.5646]
[1736402006343,6.4701785,195.08,195.05,2.5646]
[1736402007748,6.4701785,195.08,195.04,2.5646]
[1736402009152,6.4701785,195.08,195.0,6.4701785]
[1736402009353,6.4701785,195.08,195.05,2.5645]
[1736402015553,6.4701785,195.06,195.01,2.88]
[1736402015949,6.4701785,195.06,195.0,1.5942]
[1736402017043,2.5644,195.07,195.03,2.5647]
[1736402017253,6.4701785,195.06,195.03,2.5647]
[1736402018055,6.4701785,195.04,195.02,2.5649]
[1736402018359,6.4701785,195.04,194.97,2.88]
[1736402018555,6.4701785,195.02,194.97,2.88]
[1736402019451,6.4701785,195.02,194.96,6.4701785]
[1736402019954,9.0351785,195.02,194.96,6.4701785]
[1736402021051,9.0351785,195.02,194.99,2.5653]
[1736402021650,6.4701785,195.0,194.94,6.4701785]
[1736402021855,9.0353785,195.0,194.96,2.5657]
[1736402022449,6.4701785,195.0,194.93,3.1543]
[1736402022753,2.5653,194.99,194.95,2.5658]
[1736402023750,6.4701785,194.98,194.95,2.5658]
[1736402025149,186.40264586,195.1,195.0,2.5652]
[1736402025150,2.5647,195.05,195.0,2.5652]
[1736402025355,6.4701785,195.02,194.95,2.88]
[1736402025549,6.4701785,195.02,194.95,9.3501785]
[1736402025746,9.0351785,195.02,194.97,2.5656]
[1736402026057,6.4701785,195.0,194.97,2.5656]
[1736402026649,6.4701785,195.0,194.94,6.4701785]
[1736402026952,6.4701785,195.0,194.93,1.5434]
[1736402027256,2.88,195.02,194.93,1.5434]
[1736402027456,6.4701785,194.99,194.93,1.5434]
[1736402027652,9.0355785,194.99,194.93,1.5434]
[1736402027857,9.0355785,194.99,194.95,2.5658]
[1736402028460,9.0357785,194.97,194.93,2.5661]
[1736402029656,6.4701785,194.95,194.93,2.5661]
[1736402029851,6.4701785,194.95,194.91,2.5663]
[1736402030057,6.4701785,194.93,194.86,9.3501785]
[1736402030455,9.0364785,194.93,194.88,2.5667]
[1736402030658,6.4701785,194.93,194.86,6.4701785]
[1736402031552,6.4701785,194.93,194.87,2.5669]
[1736402031762,6.4701785,194.91,194.83,6.4701785]
[1736402031962,6.4701785,194.89,194.83,6.4701785]
[1736402032165,6.4701785,194.87,194.81,1.4888]
[1736402032353,6.4701785,194.85,194.79,10.15913031]
[1736402032556,6.4701785,194.87,194.83,2.5673]
[1736402032764,2.88,194.89,194.81,6.4701785]
[1736402032960,9.3501785,194.89,194.81,6.4701785]
[1736402033360,9.3501785,194.89,194.83,6.4701785]
[1736402034064,6.4701785,194.87,194.82,2.5675]
[1736402034660,9.0370785,194.87,194.82,2.5675]
[1736402035164,6.4701785,194.87,194.79,6.76075181]
[1736402035469,6.4701785,194.85,194.8,2.5678]
[1736402036064,9.0373785,194.85,194.8,2.5678]
[1736402036961,6.4701785,194.85,194.78,6.4701785]
[1736402037264,6.4701785,194.83,194.78,2.568]
[1736402038062,9.0376785,194.83,194.76,6.4701785]
[1736402038364,6.4701785,194.83,194.79,2.568]
[1736402039264,6.4701785,194.83,194.8,2.5678]
[1736402040061,6.4701785,194.83,194.78,6.4701785]
[1736402040363,6.4701785,194.85,194.8,6.4701785]
[1736402040564,9.3501785,194.87,194.8,6.4701785]
[1736402040765,6.4701785,194.87,194.84,2.5673]
[1736402041468,6.4701785,194.87,194.8,6.4701785]
[1736402041767,6.4701785,194.85,194.83,2.5674]
[1736402042665,2.88,194.88,194.8,6.4701785]
[1736402042861,6.4701785,194.88,194.82,6.4701785]
[1736402043263,6.4701785,194.88,194.86,2.567]
[1736402044066,6.4701785,194.88,194.84,2.5672]
[1736402046867,6.4701785,194.86,194.79,3.147]
[1736402047073,6.4701785,194.84,194.79,1.5689]
[1736402047973,6.4701785,194.84,194.78,6.4701785]
[1736402049669,2.9,194.85,194.83,2.5674]
[1736402049974,2.9,194.85,194.8,6.4701785]
[1736402050170,6.4701785,194.86,194.8,6.4701785]
[1736402050380,9.3701785,194.86,194.8,6.4701785]
[1736402051175,9.3701785,194.86,194.83,2.5673]
[1736402052081,9.3701785,194.86,194.84,2.5673]
[1736402056480,9.3701785,194.86,194.8,6.4701785]
[1736402056681,6.4701785,194.84,194.78,6.4701785]
[1736402057182,6.4701785,194.84,194.74,2.9]
[1736402057372,6.4701785,194.82,194.75,6.4701785]
[1736402058183,2.9,194.81,194.78,2.568]
[1736402058878,6.4701785,194.8,194.78,2.568]
[1736402059278,6.4701785,194.8,194.74,6.4701785]
[1736402059486,6.4701785,194.8,194.79,2.5681]
[1736402059888,9.3701785,194.81,194.79,2.5681]
[1736402061689,9.3701785,194.81,194.74,6.4701785]
[1736402061990,9.3701785,194.81,194.78,2.5682]
[1736402062380,9.3701785,194.81,194.74,6.4701785]
[1736402062591,9.3701785,194.81,194.79,2.568]
[1736402063089,9.3701785,194.81,194.74,6.4701785]
[1736402063290,6.4701785,194.79,194.72,7.9670785]
[1736402063492,6.4701785,194.77,194.72,6.4701785]
[1736402063693,6.4701785,194.77,194.7,6.4701785]
[1736402063993,9.0384785,194.77,194.7,6.4701785]
[1736402064392,2.9,194.76,194.7,6.4701785]
[1736402064590,2.9,194.76,194.73,2.5688]
[1736402066895,6.4701785,194.75,194.66,3.69120132]
[1736402067193,6.4701785,194.71,194.61,191.0]
[1736402067398,9.3701785,194.71,194.68,2.5695]
[1736402067995,9.3701785,194.71,194.67,2.5696]
[1736402069099,9.3701785,194.71,194.68,2.5695]
[1736402069299,6.4701785,194.69,194.62,6.4701785]
[1736402071096,6.4701785,194.69,194.65,2.5699]
[1736402072000,6.4701785,194.69,194.66,2.5697]
[1736402074702,2.9,194.68,194.66,2.5697]
[1736402078898,2.9,194.68,194.67,2.5696]
[1736402081202,2.9,194.68,194.5,276.2638]
[1736402081403,6.4701785,194.64,194.57,6.4701785]
[1736402081599,6.4701785,194.62,194.6,2.5705]
[1736402082006,6.4701785,194.62,194.51,3.0948]
[1736402082202,6.4701785,194.59,194.51,3.0948]
[1736402082509,6.4701785,194.59,194.52,6.4701785]
[1736402083409,2.9,194.58,194.57,2.571]
[1736402083606,2.9,194.58,194.52,6.4701785]
[1736402083806,6.4701785,194.57,194.52,6.4701785]
[1736402084212,6.4701785,194.55,194.51,1.5328]
[1736402085409,6.4701785,194.55,194.49,6.4701785]
[1736402085809,6.4701785,194.53,194.47,6.4701785]
[1736402086009,9.3701785,194.53,194.47,6.4701785]
[1736402086211,9.3701785,194.53,194.5,2.5719]
[1736402088917,9.3701785,194.53,194.51,2.5717]
[1736402090521,2.5707,194.59,194.53,2.5714]
[1736402090817,6.4701785,194.55,194.49,6.4701785]
[1736402091007,6.4701785,194.57,194.49,6.4701785]
[1736402091210,2.9,194.56,194.54,2.5712]
[1736402091409,2.9,194.56,194.49,6.4701785]
[1736402091410,6.4701785,194.57,194.49,6.4701785]
[1736402091615,2.9,194.57,194.51,2.5717]
[1736402091817,6.4701785,194.55,194.4,192.4749]
[1736402092115,6.4701785,194.55,194.48,6.4701785]
[1736402093220,6.4701785,194.55,194.52,2.5716]
[1736402093409,2.9,194.57,194.48,6.4701785]
[1736402093615,6.4701785,194.51,194.49,2.572]
[1736402094514,6.4701785,194.51,194.47,2.5722]
[1736402096118,9.0419785,194.51,194.47,2.5722]
[1736402096910,6.4701785,194.51,194.47,2.5722]
[1736402098220,6.4701785,194.49,194.47,2.5722]
[1736402103224,6.4701785,194.49,194.44,2.5726]
[1736402103425,6.4701785,194.47,194.44,2.5726]
[1736402106326,6.4701785,194.47,194.45,2.5725]
[1736402110224,6.4701785,194.47,194.44,2.5727]
[1736402110431,6.4701785,194.45,194.44,2.5727]
[1736402113136,6.4701785,194.45,194.42,2.5728]
[1736402118734,2.9,194.47,194.45,2.5725]
[1736402121343,9.0423785,194.49,194.45,2.5725]
[1736402121547,11.9423785,194.49,194.45,2.5725]
[1736402122347,6.4701785,194.49,194.47,2.5723]
[1736402123050,2.9,194.5,194.46,6.4701785]
[1736402123243,6.4701785,194.52,194.46,6.4701785]
[1736402123448,6.4701785,194.52,194.47,2.5722]
[1736402123650,6.4701785,194.52,194.46,6.4701785]
[1736402124650,6.4701785,194.52,194.5,2.5718]
[1736402128153,6.4701785,194.52,194.51,2.5718]
[1736402133253,6.4701785,194.52,194.49,2.572]
[1736402134962,3.1974,194.58,194.47,6.4701785]
[1736402135259,9.3701785,194.57,194.49,6.4701785]
[1736402135467,6.4701785,194.57,194.54,2.5713]
[1736402135658,6.4701785,194.57,194.49,6.4701785]
[1736402136361,6.4701785,194.57,194.55,2.5713]
[1736402137162,6.4701785,194.57,194.49,6.4701785]
[1736402137358,9.0412785,194.57,194.53,2.5715]
[1736402140060,6.4701785,194.57,194.54,2.5715]
[1736402143272,6.4701785,194.55,194.52,2.5716]
[1736402144964,6.4701785,194.55,194.53,2.5715]
[1736402145170,9.0413785,194.57,194.53,2.5715]
[1736402146270,6.4701785,194.55,194.53,2.5715]
[1736402146470,6.4701785,194.57,194.53,2.5715]
[1736402148168,9.0412785,194.57,194.54,2.5714]
[1736402148668,6.4701785,194.57,194.54,2.5714]
[1736402149374,6.4701785,194.57,194.5,6.4701785]
[1736402149570,6.4701785,194.57,194.55,2.5713]
[1736402151675,66.90974056,194.59,194.56,2.5712]
[1736402151876,9.3701785,194.59,194.56,2.5712]
[1736402153276,8.1461285,194.66,194.57,2.571]
[1736402153277,2.5706,194.61,194.57,2.571]
[1736402153477,6.4701785,194.59,194.57,2.571]
[1736402157374,9.3701785,194.61,194.59,2.5708]
[1736402157579,9.3701785,194.61,194.56,6.4701785]
[1736402158472,2.9,194.61,194.57,2.571]
[1736402158678,9.3701785,194.61,194.56,6.4701785]
[1736402159077,9.3701785,194.61,194.59,2.5707]
[1736402163379,11.9406785,194.61,194.54,6.4701785]
[1736402163580,6.4701785,194.57,194.47,191.0]
[1736402163782,6.4701785,194.57,194.49,6.4701785]
[1736402163979,2.5712,194.56,194.52,2.5716]
[1736402164282,6.4701785,194.55,194.52,2.5716]
[1736402165783,6.4701785,194.55,194.53,2.5716]
[1736402166086,6.4701785,194.55,194.49,6.4701785]
[1736402166283,6.4701785,194.53,194.48,2.5721]
[1736402166488,6.4701785,194.51,194.45,6.4701785]
[1736402166689,6.4701785,194.49,194.43,6.4701785]
[1736402167085,6.4701785,194.49,194.45,2.5725]
[1736402167390,6.4701785,194.49,194.43,6.4701785]
[1736402167684,6.4701785,194.47,194.41,6.4701785]
[1736402168486,6.4701785,194.47,194.39,3.0979]
[1736402168691,6.4701785,194.47,194.4,6.4701785]
[1736402168882,6.4701785,194.47,194.43,2.5729]
[1736402169486,2.9,194.51,194.4,6.4701785]
[1736402169687,6.4701785,194.49,194.46,2.5725]
[1736402170292,6.4701785,194.49,194.44,2.5728]
[1736402170591,6.4701785,194.49,194.41,6.4701785]
[1736402171184,6.4701785,194.49,194.45,2.5726]
[1736402171386,6.4701785,194.47,194.41,6.4701785]
[1736402171587,6.4701785,194.47,194.4,2.5732]
[1736402171787,2.5723,194.48,194.4,6.4701785]
[1736402171987,6.4701785,194.47,194.4,6.4701785]
[1736402173193,6.4701785,194.47,194.43,2.5729]
[1736402174594,6.4701785,194.47,194.44,2.5728]
[1736402175796,6.4701785,194.49,194.45,2.5725]
[1736402175995,9.3701785,194.49,194.45,2.5725]
[1736402176493,9.3701785,194.49,194.42,6.4701785]
[1736402176692,9.3701785,194.49,194.44,6.4701785]
[1736402177084,9.3701785,194.49,194.46,2.5724]
[1736402180495,2.9,194.49,194.44,6.4701785]
[1736402180693,2.9,194.52,194.48,2.5722]
[1736402180894,1.5159,194.59,194.48,6.4701785]
[1736402181192,9.0414785,194.56,194.52,2.5717]
[1736402181400,6.4701785,194.58,194.52,2.9]
[1736402181597,6.4701785,194.58,194.55,2.5713]
[1736402182097,6.4701785,194.58,194.52,9.3701785]
[1736402182295,6.4701785,194.58,194.54,2.5714]
[1736402182500,9.0408785,194.6,194.52,9.3701785]
[1736402183087,6.4701785,194.6,194.52,6.4701785]
[1736402183289,6.4701785,194.58,194.52,6.4701785]
[1736402183493,6.4701785,194.58,194.53,2.9]
[1736402184696,6.4701785,194.58,194.55,2.5712]
[1736402185996,6.4701785,194.58,194.52,6.4701785]
[1736402186298,6.4701785,194.56,194.5,9.3701785]
[1736402187101,6.4701785,194.56,194.52,2.5717]
[1736402188899,6.4701785,194.54,194.5,2.5718]
[1736402189100,9.3701785,194.54,194.5,2.5718]
[1736402189504,6.4701785,194.52,194.48,2.5721]
[1736402189891,6.4701785,194.52,194.46,1.5112]
[1736402190097,6.4701785,194.5,194.45,2.5725]
[1736402190398,6.4701785,194.48,194.4,45.51465482]
[1736402190598,6.4701785,194.46,194.4,51.98483332]
[1736402190794,6.4701785,194.46,194.43,2.5729]
[1736402193399,6.4701785,194.46,194.4,51.98483332]
[1736402193702,6.4701785,194.46,194.44,2.5727]
[1736402194299,9.3701785,194.48,194.4,51.98483332]
[1736402194499,9.3701785,194.48,194.46,2.5725]
[1736402194707,2.9,194.48,194.46,2.5725]
[1736402194906,9.3701785,194.49,194.46,2.5725]
[1736402195097,2.9,194.49,194.44,6.4701785]
[1736402195703,2.9,194.49,194.48,2.5722]
[1736402196604,2.9,194.49,194.45,2.5725]
[1736402196805,6.4701785,194.46,194.45,2.5725]
[1736402197308,6.4701785,194.46,194.43,2.5728]
[1736402198299,6.4701785,194.44,194.38,6.4701785]
[1736402198607,6.4701785,194.44,194.42,2.573]
[1736402199207,6.4701785,194.44,194.4,2.5732]
[1736402199404,6.4701785,194.44,194.37,6.4701785]
[1736402199606,6.4701785,194.44,194.39,6.4701785]
[1736402201108,6.4701785,194.44,194.42,2.573]
[1736402201505,9.0426785,194.46,194.42,2.573]
[1736402203803,6.4701785,194.46,194.43,2.5729]
[1736402204506,2.5724,194.47,194.43,2.5729]
[1736402204701,6.4701785,194.47,194.39,6.4701785]
[1736402204906,6.4701785,194.47,194.44,2.5728]
[1736402207209,6.4701785,194.47,194.41,6.4701785]
[1736402207210,6.4701785,194.47,194.45,2.5726]
[1736402209115,6.4701785,194.47,194.41,6.4701785]
[1736402209417,6.4701785,194.47,194.44,2.5727]
[1736402212119,6.4701785,194.47,194.41,6.4701785]
[1736402212313,9.3701785,194.47,194.46,2.5725]
[1736402212820,9.3701785,194.47,194.36,2.9]
[1736402213019,9.3701785,194.47,194.45,2.5726]
[1736402215518,9.3701785,194.47,194.44,2.5726]
[1736402215912,9.0428785,194.45,194.41,2.5731]
[1736402216112,6.4701785,194.45,194.39,6.4701785]
[1736402216720,6.4701785,194.45,194.4,2.5732]
[1736402216920,6.4701785,194.45,194.39,6.4701785]
[1736402217926,6.4701785,194.45,194.42,2.573]
[1736402219322,9.3701785,194.47,194.41,6.4701785]
[1736402219726,6.4701785,194.45,194.34,192.5495]
[1736402219925,6.4701785,194.43,194.4,2.5732]
[1736402220123,2.9,194.42,194.4,2.5732]
[1736402221527,2.9,194.42,194.41,2.5732]
[1736402223930,6.4701785,194.45,194.38,6.4701785]
[1736402224131,2.9,194.44,194.42,2.573]
[1736402225627,2.9,194.44,194.38,6.4701785]
[1736402225827,2.9,194.44,194.43,2.5729]
[1736402227530,5.4728,194.44,194.4,2.5732]
[1736402227732,6.4701785,194.43,194.36,6.4701785]
[1736402228734,2.9,194.42,194.36,6.4701785]
[1736402229235,2.9,194.42,194.39,2.5733]
[1736402230042,5.4731,194.42,194.39,2.5733]
[1736402230333,6.4701785,194.41,194.34,1.5495]
[1736402230539,6.4701785,194.41,194.33,6.4701785]
[1736402230540,6.4701785,194.39,194.33,6.4701785]
[1736402231741,9.0436785,194.39,194.33,2.5742]
[1736402232034,6.4701785,194.39,194.31,8.0059785]
[1736402233145,9.0438785,194.37,194.31,8.0059785]
[1736402233741,9.0438785,194.37,194.33,2.5742]
[1736402234936,6.4701785,194.37,194.34,2.574]
[1736402238148,6.4701785,194.37,194.3,3.69799555]
[1736402238340,9.0438785,194.37,194.32,2.5743]